[Event "FIDE Women GP Monaco 2019"]
[Site "Monaco"]
[Date "2019.12.11"]
[Round "8.5"]
[White "Cramling, Pia"]
[Black "Muzychuk, Mariya"]
[Result "1/2-1/2"]
[ECO "A33"]
[WhiteElo "2461"]
[BlackElo "2559"]
[Annotator "ChessBase"]
[PlyCount "171"]
[EventDate "2019.12.03"]
[EventType "tourn"]
[EventCountry "MNC"]
[SourceTitle "playchess.com"]
[Source "ChessBase"]
[SourceQuality "1"]
[TimeControl "40/5400+30:1800+30"]

1. Nf3 {[%emt 0:00:00]} c5 {[%emt 0:00:00]} 2. c4 {[%emt 0:00:04]} Nc6 {[%emt 0:00:00]} 3. d4 {[%emt 0:00:14]} cxd4 {[%emt 0:00:00]} 4. Nxd4 {[%emt 0:00:04]} Nf6 {[%emt 0:00:01]} 5. Nc3 {[%emt 0:00:14]} e6 {[%emt 0:00:09]} 6. g3 {[%emt 0:00:16]} Qb6 {[%emt 0:00:42]} 7. Ndb5 {[%emt 0:00:18]} Ne5 {[%emt 0:01:44]} 8. Bg2 {[%emt 0:00:20]} a6 {[%emt 0:00:58]} 9. Qa4 {[%emt 0:06:51]} Rb8 {[%emt 0:00:19]} 10. Na3 {[%emt 0:00:28]} Be7 {[%emt 0:00:19]} 11. O-O {[%emt 0:06:35]} O-O {[%emt 0:00:12]} 12. Qb3 {[%emt 0:00:18]} Qc7 {[%emt 0:08:44]} 13. Bf4 {[%emt 0:01:34]} b6 {[%emt 0:06:19]} 14. Rac1 {[%emt 0:09:08]} d6 {[%emt 0:02:45]} 15. Rfd1 {[%emt 0:02:25]} Ng6 {[%emt 0:00:24]} 16. Bd2 {[%emt 0:02:29]} Bb7 {[%emt 0:00:40]} 17. e4 {[%emt 0:03:14]} Rfc8 {[%emt 0:03:54]} 18. Be3 {[%emt 0:05:58]} Ba8 {[%emt 0:07:30]} 19. h3 {[%emt 0:05:11]} Ne5 {[%emt 0:01:57]} 20. Bf4 {[%emt 0:12:51]} h6 {[%emt 0:11:27]} 21. Qa4 {[%emt 0:11:42]} Bc6 {[%emt 0:11:49]} 22. Qc2 {[%emt 0:01:15]} Qb7 {[%emt 0:03:33]} 23. Qe2 {[%emt 0:02:45]} g5 {[%emt 0:04:03]} 24. Bd2 {[%emt 0:01:36]} b5 {[%emt 0:00:21]} 25. cxb5 {[%emt 0:01:16]} axb5 {[%emt 0:00:10]} 26. b4 {[%emt 0:05:27]} Qa7 {[%emt 0:00:55]} 27. Naxb5 {[%emt 0:07:31]} Bxb5 {[%emt 0:01:17]} 28. Nxb5 {[%emt 0:00:05]} Qxa2 {[%emt 0:00:44]} 29. Nc3 {[%emt 0:02:16]} Qc4 {[%emt 0:00:53]} 30. Rb1 {[%emt 0:03:46]} Qxe2 {[%emt 0:09:00]} 31. Nxe2 {[%emt 0:00:02]} Rc4 {[%emt 0:00:09]} 32. Rbc1 {[%emt 0:06:29]} Rxc1 {[%emt 0:04:54]} 33. Rxc1 {[%emt 0:00:07]} d5 {[%emt 0:00:29]} 34. exd5 {[%emt 0:00:43]} Nxd5 {[%emt 0:00:39]} 35. Bxd5 {[%emt 0:01:07]} exd5 {[%emt 0:00:03]} 36. Bc3 {[%emt 0:00:11]} Nc6 {[%emt 0:00:54]} 37. Rd1 {[%emt 0:00:28]} Rb5 {[%emt 0:00:16]} 38. Ra1 {[%emt 0:02:15]} Bxb4 {[%emt 0:08:29]} 39. Ra8+ {[%emt 0:00:06]} Bf8 {[%emt 0:05:04]} 40. g4 {[%emt 0:01:14]} Rb8 {[%emt 0:00:34]} 41. Ra6 {[%emt 0:01:36]} Rc8 {[%emt 0:02:20]} 42. Kg2 {[%emt 0:03:07]} Ne7 {[%emt 0:01:22]} 43. h4 {[%emt 0:09:05]} gxh4 {[%emt 0:04:31]} 44. Bf6 {[%emt 0:04:35]} Ng6 {[%emt 0:02:41]} 45. Ra2 {[%emt 0:07:44]} Re8 {[%emt 0:16:14]} 46. Nd4 {[%emt 0:00:47]} Re4 {[%emt 0:00:44]} 47. f3 {[%emt 0:03:37]} Rf4 {[%emt 0:00:11]} 48. Nf5 {[%emt 0:00:33]} h3+ {[%emt 0:06:11]} 49. Kxh3 {[%emt 0:01:20]} Rxf3+ {[%emt 0:00:20]} 50. Kg2 {[%emt 0:00:01]} Rf4 {[%emt 0:00:24]} 51. Ra8 {[%emt 0:01:12]} Rxg4+ {[%emt 0:00:51]} 52. Kh3 {[%emt 0:00:09]} Rf4 {[%emt 0:00:09]} 53. Nxh6+ {[%emt 0:02:18]} Kh7 {[%emt 0:00:03]} 54. Ng4 {[%emt 0:01:17]} Bg7 {[%emt 0:00:12]} 55. Ra6 {[%emt 0:00:34]} d4 {[%emt 0:03:09]} 56. Rd6 {[%emt 0:00:23]} Rf3+ {[%emt 0:02:29]} 57. Kg2 {[%emt 0:00:07]} Rd3 {[%emt 0:00:16]} 58. Kf2 {[%emt 0:00:35]} Bxf6 {[%emt 0:00:26]} 59. Nxf6+ {[%emt 0:00:10]} Kh6 {[%emt 0:00:59]} 60. Ne4 {[%emt 0:00:24]} Kg7 {[%emt 0:00:16]} 61. Nc5 {[%emt 0:00:42]} Rc3 {[%emt 0:00:04]} 62. Ne4 {[%emt 0:00:13]} Rc2+ {[%emt 0:00:36]} 63. Kf1 {[%emt 0:01:18]} Rc1+ {[%emt 0:01:06]} 64. Kf2 {[%emt 0:00:21]} Rc2+ {[%emt 0:01:05]} 65. Kf1 {[%emt 0:00:06]} Rc4 {[%emt 0:00:41]} 66. Nd2 {[%emt 0:00:28]} Rc2 {[%emt 0:01:23]} 67. Rxd4 {[%emt 0:00:26]} f5 {[%emt 0:00:37]} 68. Nf3 {[%emt 0:00:29]} f4 {[%emt 0:00:47]} 69. Rd2 {[%emt 0:00:13]} Rc5 {[%emt 0:00:23]} 70. Kf2 {[%emt 0:00:23]} Kf6 {[%emt 0:00:01]} 71. Rb2 {[%emt 0:00:45]} Rc6 {[%emt 0:00:17]} 72. Rd2 {[%emt 0:00:26]} Ne7 {[%emt 0:00:14]} 73. Rd8 {[%emt 0:01:15]} Rc2+ {[%emt 0:00:15]} 74. Rd2 {[%emt 0:00:05]} Rc3 {[%emt 0:00:16]} 75. Rd8 {[%emt 0:00:38]} Ke6 {[%emt 0:00:41]} 76. Nd4+ {[%emt 0:00:53]} Kf7 {[%emt 0:00:12]} 77. Ne2 {[%emt 0:00:29]} Rc2 {[%emt 0:00:19]} 78. Rd4 {[%emt 0:00:49]} Ng6 {[%emt 0:00:08]} 79. Kf1 {[%emt 0:00:29]} Rc5 {[%emt 0:01:30]} 80. Kf2 {[%emt 0:00:23]} Rf5 {[%emt 0:00:02]} 81. Kf3 {[%emt 0:00:33]} Ne5+ {[%emt 0:00:06]} 82. Ke4 {[%emt 0:00:17]} f3 {[%emt 0:01:36]} 83. Kxf5 {[%emt 0:00:40]} fxe2 {[%emt 0:00:05]} 84. Re4 {[%emt 0:00:07]} Nf3 {[%emt 0:00:05]} 85. Rxe2 {[%emt 0:00:10]} Nd4+ {[%emt 0:00:02]} 86. Ke4 {[%emt 0:00:05]} 1/2-1/2

[Event "FIDE Women GP Monaco 2019"]
[Site "Monaco"]
[Date "2019.12.11"]
[Round "8.6"]
[White "Goryachkina, Aleksandra"]
[Black "Gunina, Valentina"]
[Result "1-0"]
[ECO "E09"]
[WhiteElo "2572"]
[BlackElo "2492"]
[Annotator "ChessBase"]
[PlyCount "101"]
[EventDate "2019.12.03"]
[EventType "tourn"]
[EventCountry "MNC"]
[SourceTitle "playchess.com"]
[Source "ChessBase"]
[SourceQuality "1"]
[TimeControl "40/5400+30:1800+30"]

1. d4 {[%emt 0:00:00]} Nf6 {[%emt 0:00:00]} 2. c4 {[%emt 0:00:00]} e6 {[%emt 0:00:00]} 3. g3 {[%emt 0:00:19]} d5 {[%emt 0:01:21]} 4. Bg2 {[%emt 0:00:19]} Be7 {[%emt 0:00:14]} 5. Nf3 {[%emt 0:00:37]} O-O {[%emt 0:00:07]} 6. O-O {[%emt 0:01:16]} Nbd7 {[%emt 0:00:04]} 7. Nbd2 {[%emt 0:03:09]} c6 {[%emt 0:00:09]} 8. Qc2 {[%emt 0:00:17]} b6 {[%emt 0:00:10]} 9. e4 dxc4 {[%emt 0:00:27]} 10. Nxc4 {[%emt 0:01:03]} Bb7 {[%emt 0:00:15]} 11. Bg5 {[%emt 0:01:17]} b5 {[%emt 0:10:36]} 12. Ne3 {[%emt 0:01:56]} h6 {[%emt 0:03:33]} 13. e5 {[%emt 0:09:10]} Nd5 {[%emt 0:13:08]} 14. Nxd5 {[%emt 0:03:59]} cxd5 {[%emt 0:04:07]} 15. Bxe7 {[%emt 0:00:28]} Qxe7 {[%emt 0:00:02]} 16. Qc7 {[%emt 0:07:54]} Rab8 {[%emt 0:04:05]} 17. Rfc1 {[%emt 0:00:59]} Rfc8 {[%emt 0:00:57]} 18. Qa5 Nb6 {[%emt 0:16:53]} 19. Rxc8+ {[%emt 0:09:18]} Rxc8 20. Qxb5 {[%emt 0:13:20]} Rc2 {[%emt 0:07:20]} 21. Rb1 g6 {[%emt 0:27:46]} 22. Bf1 {[%emt 0:04:07]} Qc7 {[%emt 0:01:28]} 23. Bd3 {[%emt 0:05:16]} Rc1+ {[%emt 0:02:49]} 24. Rxc1 {[%emt 0:07:00]} Qxc1+ {[%emt 0:00:01]} 25. Bf1 {[%emt 0:00:51]} Kg7 26. b3 Qc3 {[%emt 0:05:38]} 27. Kg2 {[%emt 0:10:17]} Qc2 {[%emt 0:01:42]} 28. Qe2 {[%emt 0:01:03]} Qb1 {[%emt 0:00:32]} 29. Qd2 {[%emt 0:01:33]} Qa1 {[%emt 0:00:31]} 30. h4 {[%emt 0:00:28]} Nd7 {[%emt 0:00:30]} 31. Bb5 {[%emt 0:01:14]} Nb8 {[%emt 0:00:33]} 32. Nh2 {[%emt 0:06:08]} h5 {[%emt 0:00:20]} 33. Qf4 {[%emt 0:02:37]} Nc6 {[%emt 0:00:36]} 34. Nf3 {[%emt 0:00:38]} Qb1 {[%emt 0:00:31]} 35. Qf6+ {[%emt 0:01:29]} Kg8 {[%emt 0:00:28]} 36. Ng5 {[%emt 0:01:03]} Qf5 {[%emt 0:00:16]} 37. Qxf5 {[%emt 0:00:10]} exf5 {[%emt 0:00:47]} 38. Bxc6 {[%emt 0:00:09]} Bxc6 {[%emt 0:00:03]} 39. Kf3 {[%emt 0:00:13]} Bb5 {[%emt 0:00:55]} 40. Ke3 {[%emt 0:00:13]} Kf8 {[%emt 0:00:29]} 41. Nh3 {[%emt 0:30:26]} Ke7 {[%emt 0:05:18]} 42. Nf4 {[%emt 0:00:00]} Bc6 {[%emt 0:03:15]} 43. Kd3 {[%emt 0:00:00]} Kd7 {[%emt 0:02:03]} 44. Kc3 {[%emt 0:00:00]} Kc7 {[%emt 0:01:28]} 45. Kb4 {[%emt 0:00:00]} Kb6 {[%emt 0:01:55]} 46. a4 {[%emt 0:00:00]} a5+ {[%emt 0:02:06]} 47. Ka3 {[%emt 0:00:00]} Bb7 {[%emt 0:02:06]} 48. b4 {[%emt 0:00:00]} axb4+ {[%emt 0:01:38]} 49. Kxb4 {[%emt 0:00:00]} Kc6 {[%emt 0:00:11]} 50. e6 {[%emt 0:00:00]} fxe6 {[%emt 0:00:44]} 51. Nxe6 {[%emt 0:00:00]} 1-0

[Event "FIDE Women GP Monaco 2019"]
[Site "Monaco"]
[Date "2019.12.12"]
[Round "9.6"]
[White "Kosteniuk, Alexandra"]
[Black "Zhao, Xue"]
[Result "1/2-1/2"]
[ECO "C77"]
[WhiteElo "2483"]
[BlackElo "2485"]
[Annotator "ChessBase"]
[PlyCount "83"]
[EventDate "2019.12.03"]
[EventType "tourn"]
[EventCountry "MNC"]
[SourceTitle "playchess.com"]
[Source "ChessBase"]
[SourceQuality "1"]
[TimeControl "40/5400+30:1800+30"]

1. e4 {[%emt 0:00:00]} e5 {[%emt 0:00:00]} 2. Nf3 {[%emt 0:00:00]} Nc6 {[%emt 0:00:00]} 3. Bb5 {[%emt 0:00:00]} a6 {[%emt 0:00:13]} 4. Ba4 {[%emt 0:00:00]} Nf6 {[%emt 0:00:18]} 5. d4 {[%emt 0:00:00]} exd4 {[%emt 0:02:24]} 6. O-O {[%emt 0:00:06]} Be7 {[%emt 0:02:31]} 7. e5 {[%emt 0:00:40]} Ne4 {[%emt 0:02:35]} 8. Nxd4 {[%emt 0:00:06]} Nxd4 {[%emt 0:06:30]} 9. Qxd4 {[%emt 0:00:30]} Nc5 {[%emt 0:00:05]} 10. Bb3 {[%emt 0:00:06]} O-O {[%emt 0:03:15]} 11. Nc3 {[%emt 0:00:31]} d6 {[%emt 0:01:05]} 12. Bf4 {[%emt 0:01:40]} dxe5 {[%emt 0:07:54]} 13. Qxe5 {[%emt 0:00:41]} Bd6 {[%emt 0:08:02]} 14. Qd4 {[%emt 0:00:26]} Nxb3 15. cxb3 {[%emt 0:00:26]} Qh4 {[%emt 0:09:11]} 16. g3 {[%emt 0:01:42]} Qh5 {[%emt 0:13:32]} 17. Bxd6 {[%emt 0:02:46]} cxd6 {[%emt 0:00:42]} 18. Qxd6 {[%emt 0:02:20]} Bg4 {[%emt 0:00:03]} 19. Qd5 {[%emt 0:03:45]} Qxd5 {[%emt 0:06:03]} 20. Nxd5 {[%emt 0:00:05]} Bf3 {[%emt 0:01:13]} 21. Nb6 {[%emt 0:27:07]} Rad8 {[%emt 0:00:36]} 22. Rfe1 {[%emt 0:01:48]} g5 {[%emt 0:05:08]} 23. Rac1 {[%emt 0:12:08]} f6 {[%emt 0:02:04]} 24. Re7 {[%emt 0:10:43]} Rd6 {[%emt 0:06:21]} 25. Nc4 {[%emt 0:01:18]} Rd4 {[%emt 0:02:40]} 26. Ne3 {[%emt 0:00:27]} Bc6 {[%emt 0:11:01]} 27. f3 {[%emt 0:23:13]} Rd2 {[%emt 0:03:45]} 28. Nc4 {[%emt 0:01:10]} Rd5 {[%emt 0:02:26]} 29. Kf2 {[%emt 0:01:39]} Rfd8 {[%emt 0:01:04]} 30. g4 {[%emt 0:01:10]} h5 {[%emt 0:01:24]} 31. Re2 {[%emt 0:04:33]} Kf7 {[%emt 0:00:59]} 32. Ne3 {[%emt 0:00:25]} Re5 {[%emt 0:01:11]} 33. h3 {[%emt 0:01:19]} Rh8 {[%emt 0:00:32]} 34. Nf1 {[%emt 0:01:54]} Ra5 {[%emt 0:00:50]} 35. a4 {[%emt 0:00:26]} hxg4 {[%emt 0:00:33]} 36. hxg4 {[%emt 0:00:01]} f5 {[%emt 0:00:18]} 37. Rce1 {[%emt 0:01:56]} Rh3 {[%emt 0:00:30]} 38. Nd2 {[%emt 0:00:10]} Rd5 {[%emt 0:00:25]} 39. Nc4 {[%emt 0:00:15]} Rh2+ {[%emt 0:01:04]} 40. Kg1 {[%emt 0:00:59]} Rxe2 {[%emt 0:00:11]} 41. Rxe2 {[%emt 0:30:02]} Kf6 {[%emt 0:30:38]} 42. Kf2 {[%emt 0:00:00] Ke5} 1/2-1/2

[Event "FIDE Women GP Monaco 2019"]
[Site "Monaco"]
[Date "2019.12.13"]
[Round "10.1"]
[White "Dzagnidze, Nana"]
[Black "Zhao, Xue"]
[Result "1/2-1/2"]
[ECO "B03"]
[WhiteElo "2520"]
[BlackElo "2485"]
[Annotator "ChessBase"]
[PlyCount "198"]
[EventDate "2019.12.03"]
[EventType "tourn"]
[EventCountry "MNC"]
[SourceTitle "playchess.com"]
[Source "ChessBase"]
[SourceQuality "1"]
[TimeControl "40/5400+30:1800+30"]

1. e4 {[%emt 0:00:00]} Nf6 {[%emt 0:00:43]} 2. e5 {[%emt 0:00:00]} Nd5 {[%emt 0:00:03]} 3. d4 {[%emt 0:00:28]} d6 {[%emt 0:00:05]} 4. c4 {[%emt 0:00:19]} Nb6 {[%emt 0:00:04]} 5. exd6 {[%emt 0:00:19]} exd6 {[%emt 0:00:04]} 6. Nc3 {[%emt 0:00:07]} Be7 {[%emt 0:00:15]} 7. Bd3 {[%emt 0:05:02]} O-O {[%emt 0:01:31]} 8. Nge2 {[%emt 0:01:17]} Nc6 {[%emt 0:01:08]} 9. b3 {[%emt 0:01:15]} Bg4 {[%emt 0:00:08]} 10. Be3 {[%emt 0:13:53]} Bg5 {[%emt 0:11:44]} 11. O-O {[%emt 0:02:51]} Bxe3 {[%emt 0:05:42]} 12. fxe3 {[%emt 0:00:03]} Qe7 {[%emt 0:02:05]} 13. Qd2 {[%emt 0:01:34]} Rae8 {[%emt 0:03:53]} 14. e4 {[%emt 0:06:41]} f5 15. Ng3 {[%emt 0:08:01]} Nxd4 {[%emt 0:14:51]} 16. Rae1 {[%emt 0:00:51]} f4 {[%emt 0:15:02]} 17. Rxf4 {[%emt 0:01:36]} Bd7 {[%emt 0:06:41]} 18. Nd5 {[%emt 0:11:17]} Qd8 {[%emt 0:11:22]} 19. e5 {[%emt 0:15:29]} Nxd5 {[%emt 0:10:22]} 20. Rxd4 {[%emt 0:10:52]} Nb4 {[%emt 0:00:33]} 21. Be4 {[%emt 0:03:27]} Nc6 {[%emt 0:05:01]} 22. Bxc6 {[%emt 0:00:10]} Bxc6 {[%emt 0:00:10]} 23. c5 {[%emt 0:00:09]} d5 {[%emt 0:01:15]} 24. h3 {[%emt 0:08:00]} Re6 {[%emt 0:00:51]} 25. Rg4 {[%emt 0:00:10]} Qe7 {[%emt 0:02:08]} 26. Qd4 {[%emt 0:01:08]} Be8 {[%emt 0:02:01]} 27. Qxd5 {[%emt 0:00:21]} c6 {[%emt 0:00:41]} 28. Qd4 {[%emt 0:01:17]} Bg6 {[%emt 0:00:24]} 29. Kh2 {[%emt 0:00:56]} Rd8 {[%emt 0:01:05]} 30. Qc4 {[%emt 0:01:00]} Rd5 {[%emt 0:01:11]} 31. Rd4 {[%emt 0:00:17]} Qxc5 {[%emt 0:01:14]} 32. Rxd5 {[%emt 0:00:05]} Qxd5 {[%emt 0:00:07]} 33. Qf4 {[%emt 0:00:05]} h6 {[%emt 0:01:21]} 34. Nf5 {[%emt 0:00:44]} Bxf5 {[%emt 0:01:13]} 35. Qxf5 {[%emt 0:00:03]} c5 {[%emt 0:01:08]} 36. h4 {[%emt 0:00:55]} Re8 {[%emt 0:00:31]} 37. Re3 {[%emt 0:02:26]} b5 {[%emt 0:00:42]} 38. Qh5 {[%emt 0:01:05]} Re7 {[%emt 0:00:30]} 39. Qf5 {[%emt 0:00:19]} Re8 {[%emt 0:00:31]} 40. Kh3 {[%emt 0:01:02]} c4 {[%emt 0:00:50]} 41. bxc4 {[%emt 0:33:13]} bxc4 {[%emt 0:30:12]} 42. h5 {[%emt 0:00:00]} Qc5 {[%emt 0:00:00]} 43. Re2 {[%emt 0:00:00]} c3 {[%emt 0:00:00]} 44. Qe4 {[%emt 0:00:00]} a5 {[%emt 0:00:00]} 45. Kg3 {[%emt 0:00:00]} Rc8 {[%emt 0:00:00]} 46. Rc2 {[%emt 0:00:00]} Rd8 {[%emt 0:00:00]} 47. Rf2 {[%emt 0:00:00]} Re8 {[%emt 0:00:55]} 48. Re2 {[%emt 0:00:00]} Qb5 {[%emt 0:00:37]} 49. Kh3 {[%emt 0:02:25]} Rc8 {[%emt 0:01:24]} 50. Qf5 {[%emt 0:01:30]} Qc4 {[%emt 0:01:47]} 51. Rc2 {[%emt 0:00:06]} Re8 {[%emt 0:00:11]} 52. Rf2 {[%emt 0:02:10]} Qd5 {[%emt 0:00:36]} 53. Re2 {[%emt 0:00:20]} Rf8 {[%emt 0:00:46]} 54. Qc2 {[%emt 0:00:44]} Rc8 {[%emt 0:00:28]} 55. Qf5 {[%emt 0:00:47]} Re8 {[%emt 0:00:06]} 56. Kg3 {[%emt 0:00:22]} Qc4 {[%emt 0:01:06]} 57. Qg4 {[%emt 0:00:39]} Qc5 {[%emt 0:00:29]} 58. Qe4 {[%emt 0:00:34]} Rd8 {[%emt 0:00:34]} 59. Rc2 {[%emt 0:00:20]} Rd5 {[%emt 0:00:33]} 60. Re2 {[%emt 0:00:07]} Rd8 {[%emt 0:00:30]} 61. e6 {[%emt 0:00:42]} Qxh5 {[%emt 0:00:31]} 62. e7 {[%emt 0:00:09]} Re8 {[%emt 0:00:03]} 63. Qc4+ {[%emt 0:00:44]} Kh7 {[%emt 0:00:20]} 64. Kf2 {[%emt 0:00:40]} Qf5+ {[%emt 0:00:23]} 65. Kg1 {[%emt 0:00:05]} Qf6 {[%emt 0:01:12]} 66. Qd3+ {[%emt 0:00:25]} Kg8 {[%emt 0:00:14]} 67. Qd5+ {[%emt 0:00:48]} Kh8 {[%emt 0:00:28]} 68. Qd7 {[%emt 0:00:35]} Qg6 {[%emt 0:00:46]} 69. Rf2 {[%emt 0:00:53]} Kh7 {[%emt 0:00:05]} 70. Re2 {[%emt 0:00:34]} c2 {[%emt 0:00:34]} 71. Qc7 {[%emt 0:00:26]} Qd3 {[%emt 0:00:54]} 72. Qxc2 {[%emt 0:00:11]} Qxc2 {[%emt 0:00:08]} 73. Rxc2 {[%emt 0:00:03]} Rxe7 {[%emt 0:00:00]} 74. Rc5 {[%emt 0:00:07]} a4 {[%emt 0:00:18]} 75. Rc4 {[%emt 0:00:03]} a3 {[%emt 0:00:28]} 76. Rc3 {[%emt 0:00:04]} Ra7 {[%emt 0:00:02]} 77. Kh2 {[%emt 0:00:22]} Ra4 {[%emt 0:00:10]} 78. Kh3 {[%emt 0:00:36]} h5 {[%emt 0:00:14]} 79. Rb3 {[%emt 0:01:27]} Kg6 {[%emt 0:00:39]} 80. Rb5 {[%emt 0:00:56]} Kh6 {[%emt 0:00:17]} 81. Kg3 {[%emt 0:01:00]} Rg4+ {[%emt 0:00:43]} 82. Kh3 {[%emt 0:00:25]} Ra4 {[%emt 0:00:40]} 83. Kg3 {[%emt 0:00:03]} g6 {[%emt 0:00:06]} 84. Kh3 {[%emt 0:00:38]} Kg7 {[%emt 0:00:11]} 85. Rb6 {[%emt 0:00:13]} Kh6 {[%emt 0:02:14]} 86. Rb5 {[%emt 0:00:06]} Ra8 {[%emt 0:01:00]} 87. g4 {[%emt 0:00:41]} Rd8 {[%emt 0:00:32]} 88. Rb3 {[%emt 0:00:38]} Ra8 {[%emt 0:00:35]} 89. gxh5 {[%emt 0:00:07]} Kxh5 {[%emt 0:00:03]} 90. Kg3 {[%emt 0:00:14]} Ra5 {[%emt 0:00:06]} 91. Rf3 {[%emt 0:00:28]} Kg5 {[%emt 0:00:19]} 92. Kh3 {[%emt 0:00:20]} Ra4 {[%emt 0:01:07]} 93. Kg3 {[%emt 0:00:17]} Kh5 {[%emt 0:00:08]} 94. Rc3 {[%emt 0:00:26]} Rg4+ {[%emt 0:00:26]} 95. Kh3 {[%emt 0:00:07]} Rh4+ {[%emt 0:00:02]} 96. Kg3 {[%emt 0:00:05]} Rg4+ {[%emt 0:00:07]} 97. Kh3 {[%emt 0:00:06]} Rh4+ {[%emt 0:00:19]} 98. Kg3 {[%emt 0:00:05]} Rg4+ {[%emt 0:00:03]} 99. Kh3 {[%emt 0:00:13]} Rh4+ {[%emt 0:00:06]} 1/2-1/2

[Event "FIDE Women GP Monaco 2019"]
[Site "Monaco"]
[Date "2019.12.13"]
[Round "10.2"]
[White "Harika, Dronavalli"]
[Black "Kosteniuk, Alexandra"]
[Result "0-1"]
[ECO "C44"]
[WhiteElo "2518"]
[BlackElo "2483"]
[Annotator "ChessBase"]
[PlyCount "80"]
[EventDate "2019.12.03"]
[EventType "tourn"]
[EventCountry "MNC"]
[SourceTitle "playchess.com"]
[Source "ChessBase"]
[SourceQuality "1"]
[TimeControl "40/5400+30:1800+30"]

1. e4 {[%emt 0:00:00]} e5 {[%emt 0:00:00]} 2. Nf3 {[%emt 0:00:00]} Nc6 {[%emt 0:00:00]} 3. d4 {[%emt 0:00:00]} exd4 {[%emt 0:00:00]} 4. Nxd4 {[%emt 0:00:00]} Nf6 {[%emt 0:00:00]} 5. Nxc6 {[%emt 0:00:00]} bxc6 {[%emt 0:00:00]} 6. Bd3 {[%emt 0:00:06]} d5 {[%emt 0:01:10]} 7. exd5 {[%emt 0:00:36]} cxd5 {[%emt 0:02:42]} 8. O-O {[%emt 0:00:11]} Be7 {[%emt 0:08:42]} 9. c4 {[%emt 0:00:16]} Bb7 {[%emt 0:11:20]} 10. Nc3 {[%emt 0:03:59]} d4 {[%emt 0:04:35]} 11. Ne2 {[%emt 0:07:39]} Qd7 {[%emt 0:00:43]} 12. Ng3 {[%emt 0:04:46]} g6 {[%emt 0:00:16]} 13. Re1 {[%emt 0:12:38]} O-O-O {[%emt 0:05:15]} 14. Bg5 {[%emt 0:03:29]} Rhe8 {[%emt 0:12:31]} 15. a3 {[%emt 0:17:58]} h5 {[%emt 0:03:01]} 16. b4 {[%emt 0:04:59]} Ng4 {[%emt 0:00:37]} 17. Bxe7 {[%emt 0:02:29]} Rxe7 {[%emt 0:00:09]} 18. Rxe7 {[%emt 0:01:56]} Qxe7 {[%emt 0:00:03]} 19. Qe2 {[%emt 0:00:22]} Qxe2 {[%emt 0:19:23]} 20. Nxe2 {[%emt 0:00:16]} Ne5 {[%emt 0:00:37]} 21. Rd1 {[%emt 0:04:21]} c5 {[%emt 0:03:13]} 22. Nc1 {[%emt 0:06:49]} a5 {[%emt 0:02:04]} 23. bxa5 {[%emt 0:07:22]} Ba6 {[%emt 0:00:43]} 24. Bf1 {[%emt 0:00:23]} Kc7 {[%emt 0:04:55]} 25. Nb3 {[%emt 0:00:44]} Kc6 {[%emt 0:01:11]} 26. f4 {[%emt 0:08:19]} Bxc4 {[%emt 0:03:37]} 27. Nxc5 {[%emt 0:02:18]} Kxc5 {[%emt 0:00:05]} 28. fxe5 {[%emt 0:00:02]} d3 {[%emt 0:00:23]} 29. Kf2 {[%emt 0:01:38]} Kd4 {[%emt 0:01:42]} 30. g4 {[%emt 0:05:38]} hxg4 {[%emt 0:00:48]} 31. Bg2 {[%emt 0:00:37]} Kc3 {[%emt 0:01:57]} 32. Rc1+ {[%emt 0:02:13]} Kb2 {[%emt 0:00:21]} 33. Rxc4 {[%emt 0:01:12]} d2 {[%emt 0:00:04]} 34. Rb4+ {[%emt 0:00:06]} Ka2 {[%emt 0:00:13]} 35. a6 {[%emt 0:02:44]} d1=Q {[%emt 0:00:33]} 36. a7 {[%emt 0:00:03]} Qd2+ {[%emt 0:00:46]} 37. Kf1 {[%emt 0:00:09]} Qe3 {[%emt 0:00:54]} 38. Bd5+ {[%emt 0:00:43]} Rxd5 {[%emt 0:00:02]} 39. a8=Q {[%emt 0:00:04]} Rd1+ {[%emt 0:00:07]} 40. Kg2 {[%emt 0:00:04]} Rg1# {[%emt 0:00:04]} 0-1

[Event "FIDE Women GP Monaco 2019"]
[Site "Monaco"]
[Date "2019.12.13"]
[Round "10.3"]
[White "Paehtz, Elisabeth"]
[Black "Lagno, Kateryna"]
[Result "1/2-1/2"]
[ECO "A48"]
[WhiteElo "2475"]
[BlackElo "2547"]
[Annotator "ChessBase"]
[PlyCount "43"]
[EventDate "2019.12.03"]
[EventType "tourn"]
[EventCountry "MNC"]
[SourceTitle "playchess.com"]
[Source "ChessBase"]
[SourceQuality "1"]
[TimeControl "40/5400+30:1800+30"]

1. d4 {[%emt 0:00:00]} Nf6 {[%emt 0:00:00]} 2. Nf3 {[%emt 0:00:00]} g6 {[%emt 0:00:00]} 3. Bg5 {[%emt 0:00:00]} Bg7 {[%emt 0:00:13]} 4. Nbd2 {[%emt 0:00:00]} d5 {[%emt 0:00:29]} 5. e3 {[%emt 0:00:00]} c5 {[%emt 0:01:50]} 6. c3 {[%emt 0:00:00]} O-O {[%emt 0:00:50]} 7. Be2 {[%emt 0:00:09]} b6 {[%emt 0:00:53]} 8. O-O {[%emt 0:00:08]} Bb7 {[%emt 0:00:25]} 9. Bh4 {[%emt 0:01:07]} Nbd7 {[%emt 0:02:05]} 10. h3 {[%emt 0:04:50]} h6 {[%emt 0:04:12]} 11. b4 {[%emt 0:02:21]} Ne4 {[%emt 0:11:20]} 12. Nxe4 {[%emt 0:00:16]} dxe4 {[%emt 0:00:04]} 13. Nd2 {[%emt 0:00:04]} cxb4 {[%emt 0:00:49]} 14. cxb4 {[%emt 0:00:33]} g5 {[%emt 0:03:38]} 15. Bg3 {[%emt 0:00:03]} e5 {[%emt 0:00:10]} 16. Nc4 {[%emt 0:16:23]} exd4 {[%emt 0:03:05]} 17. exd4 {[%emt 0:00:04]} f5 {[%emt 0:02:30]} 18. Bd6 {[%emt 0:01:24]} Rf6 {[%emt 0:23:06]} 19. Be5 {[%emt 0:00:04]} Rf8 {[%emt 0:08:12]} 20. Bd6 {[%emt 0:00:28]} Rf6 {[%emt 0:00:05]} 21. Be5 {[%emt 0:00:02]} Rf8 {[%emt 0:00:03]} 22. Bd6 {[%emt 0:00:03]} 1/2-1/2